Cogmind - Beta 14 @@@ ROGUE MODE // 2025.01.04 @ 12:58:39 Player: Tereza Result: Destroyed by P-70 Sage with Tesla Rifle Performance ------------- Evolutions (5) 2500 Regions Visited (15) 3000 Robots Destroyed (265) 1325 Value Destroyed (11547) 11547 Prototype IDs (27) 540 Alien Tech Used (0) 0 Bonus (7310) 7310 TOTAL SCORE: 26222 Bonus ------- High Alert Combat Kills 3041 Follower Combat Kills 2706 Entered Garrisons 400 Met Data Miner 300 Acquired ECA 300 Built Enhanced Grunts 300 Met R17 at Cetus 500 Friendly Fire -237 Cogmind --------- Core Integrity 0/1000 Matter 251/300 Energy 94/100 System Corruption 12% Temperature Cool (0) Movement Core (50) Location -5/Factory Parts ------- > --- POWER (2) -------- (None) > --- PROPULSION (4) --- (None) > --- UTILITY (9) ------ Core Analyzer Experimental Core Analyzer Graphene Brace > --- WEAPON (2) ------- (None) > --- INVENTORY (5) ---- Matter Compressor (43) Improved Focal Shield Advanced Shield Generator Proton Cannon KE Penetrator Peak State ------------ > --- POWER ------------ Neutrino Core Quantum Reactor > --- PROPULSION ------- Heavy Treads Centrium Heavy Treads > --- UTILITY ---------- Improved Cooling System High-capacity Storage Unit Core Analyzer Core Analyzer Experimental Core Analyzer Transmission Jammer Centrium Medium Armor Plating Graphene Brace Hacking Suite > --- WEAPON ----------- Heavy Beamcaster Mass Driver > --- INVENTORY -------- Carbon-fiber Leg Flexi-carbon Leg Matter Compressor Improved Sensor Array Encrypted Comm Array Centrium Medium Armor Plating Improved Focal Shield Advanced Shield Generator Hacking Suite Hacking Suite Advanced System Shield Gatling Laser Wave Gun Proton Cannon HERF Cannon Flak Gun KE Penetrator Bore Cannon Proton Missile Launcher Long-range Missile Launcher [Rating: 113] Favorites ----------- Power Improved Deuterium Engine Engine Improved Deuterium Engine Power Core Light Nuclear Core Reactor Quantum Reactor Propulsion Light Treads Treads Light Treads Leg Carbon-fiber Leg Wheel Armored Huge Wheel Utility Hacking Suite Device Graphene Brace Storage High-capacity Storage Unit Processor Core Analyzer Hackware Hacking Suite Protection Improved Utility Shielding Weapon Gauss Rifle Energy Gun Heavy Beamcaster Energy Cannon Cooled Plasma Cannon Ballistic Gun Gauss Rifle Ballistic Cannon Improved Light Cannon Launcher Improved Grenade Launcher Build | -11 -10 -9 -8 -8 -8 -7 -7 -7 -7 -6 -6 -6 -6 -6 -5 ------- Run | Yrd Mat Mat Mat Gar Mat Fac Low Low Dat Pro Fac Gar Ext Cet Fac Slots Evolved 10 | . . 2 2 . . 2 . . . . 2 . . . 2 Power 1 | . . . . . . . . . . . . . . . 1 Propulsion 2 | . . . 1 . . 1 . . . . . . . . . Utility 7 | . . 2 1 . . 1 . . . . 2 . . . 1 Weapon . | . . . . . . . . . . . . . . . . Parts Attached 246 | 6 8 22 42 16 20 36 3 2 2 6 1 37 17 7 21 Power 26 | 1 1 2 5 2 1 5 . . . 1 . 3 3 1 1 Engine 16 | 1 1 2 2 . 1 4 . . . 1 . 2 2 . . Core 9 | . . . 3 2 . 1 . . . . . 1 1 . 1 Reactor 1 | . . . . . . . . . . . . . . 1 . Propulsion 69 | 2 . 6 13 5 6 8 3 . . 1 . 12 6 1 6 Treads 47 | 2 . 5 13 5 6 6 2 . . 1 . 4 . 1 2 Leg 13 | . . . . . . . . . . . . 5 6 . 2 Wheel 9 | . . 1 . . . 2 1 . . . . 3 . . 2 Hover . | . . . . . . . . . . . . . . . . Flight . | . . . . . . . . . . . . . . . . Utility 61 | 1 4 8 10 4 5 9 . . . . 1 8 4 1 6 Device 15 | . . 2 . 1 1 4 . . . . . 3 . . 4 Storage 6 | 1 2 . 1 . . . . . . . . . 1 . 1 Processor 7 | . 1 . 2 . . . . . . . . 3 1 . . Hackware 4 | . . 1 1 . 1 1 . . . . . . . . . Protection 29 | . 1 5 6 3 3 4 . . . . 1 2 2 1 1 Artifact . | . . . . . . . . . . . . . . . . Weapon 90 | 2 3 6 14 5 8 14 . 2 2 4 . 14 4 4 8 Energy Gun 7 | . . . . . . . . . . . . 1 3 2 1 Energy Cannon 5 | . . . . . . . . . . . . 3 1 1 . Ballistic Gun 36 | 2 2 2 10 5 5 4 . . . 1 . 4 . . 1 Ballistic Cannon 21 | . 1 3 1 . . 6 . 1 2 2 . 2 . . 3 Launcher 21 | . . 1 3 . 3 4 . 1 . 1 . 4 . 1 3 Special Weapon . | . . . . . . . . . . . . . . . . Impact Weapon . | . . . . . . . . . . . . . . . . Slashing Weapon . | . . . . . . . . . . . . . . . . Piercing Weapon . | . . . . . . . . . . . . . . . . Special Melee Weapon . | . . . . . . . . . . . . . . . . Unidentified Prototypes 10 | . . . . . 1 3 . . . . . 3 1 2 . Parts Lost 101 | . 1 11 21 8 3 7 1 . . 4 . 24 1 . 20 Power 15 | . 1 2 3 1 1 . . . . 1 . 3 1 . 2 Propulsion 35 | . . 4 9 2 . 2 1 . . 1 . 9 . . 7 Utility 27 | . . 4 5 3 1 2 . . . . . 5 . . 7 Weapon 24 | . . 1 4 2 1 3 . . . 2 . 7 . . 4 Highest Loss Streak 13 | . 1 3 5 3 2 3 1 . . 3 . 13 1 . 11 To Critical Strikes 1 | . . . 1 . . . . . . . . . . . . Average Slot Usage (%) 90 | . 93 92 87 89 90 93 92 92 76 86 84 79 93 99 83 Engine 4 | . 13 10 3 . 5 4 7 7 7 6 6 4 4 . . Core 2 | . . . 5 8 3 2 . . . . . . 1 1 2 Treads 18 | . 28 17 25 26 27 22 15 15 15 13 13 6 6 6 8 Leg 2 | . . . . . . . . . . . . 3 14 19 4 Wheel 2 | . . 4 . . . 4 7 7 7 7 6 2 . . . Device 7 | . . 8 1 6 1 10 15 15 15 15 13 8 6 6 11 Storage 8 | . 14 11 9 9 9 7 7 7 7 7 6 6 6 6 4 Processor 4 | . 2 . 3 . . . . . . . . 8 20 20 17 Hackware 11 | . . 6 11 9 16 15 15 15 15 15 13 13 13 13 8 Protection 8 | . 5 11 10 11 10 8 7 7 7 7 11 8 5 6 4 Energy Gun 1 | . . . . . . . . . . . . 1 8 12 5 Ballistic Gun 9 | . 25 11 11 10 17 10 7 3 . 3 6 5 4 . . Ballistic Cannon 4 | . 2 10 5 7 . 4 7 11 . 7 6 1 . . 3 Peak Build Rating 113 | 6 12 17 34 35 33 55 55 55 54 54 59 71 80 98 113 Average Rating 43 | 4 9 14 26 32 30 45 52 54 46 50 57 54 71 86 97 On Entrance 42 | . 6 11 17 32 28 31 53 55 54 54 51 59 60 78 98 Naked Turns . | . . . . . . . . . . . . . . . . Heaviest Build 99 | 11 36 41 75 82 74 74 65 67 67 67 85 90 69 81 99 Greatest Support 150 | 40 40 40 69 63 60 82 28 28 28 28 48 88 50 110 150 Greatest Overweight (x) 18 | . . 4 1 3 1 7 2 2 2 2 3 7 2 1 18 Average Overweight (x) 1 | . . . . 1 . 1 2 2 1 1 2 2 1 . . Largest Inventory Capacity 20 | 8 15 15 20 20 20 20 20 20 20 20 20 20 20 20 20 Average Capacity 19 | 6 13 15 19 20 20 20 20 20 20 20 20 20 20 20 19 Most Carried 20 | 5 15 15 20 20 20 20 20 20 20 20 20 20 20 20 20 Average Carried 18 | 3 11 14 18 19 19 19 19 20 20 18 18 15 19 19 19 Final Capacity 20 | 8 15 15 20 20 20 20 20 20 20 20 20 20 20 20 5 Final Carried 20 | 4 15 15 20 16 17 20 20 20 20 18 19 14 20 20 5 Class Distribution -------------------- 38% | Scavenger-Mutant 29% | Hacker-Mutant 25% | Mutant 6% | Commander-Mutant Dominant Class ---------------- Mutant | -10/Materials Scavenger-Mutant | -9/Materials Mutant | -8/Materials Mutant | -8/Garrison Scavenger-Mutant | -8/Materials Hacker-Mutant | -7/Factory Hacker-Mutant | -7/Lower Caves Hacker-Mutant | -7/Lower Caves Hacker-Mutant | -7/Data Miner Hacker-Mutant | -6/Proximity Caves Hacker-Mutant | -6/Factory Scavenger-Mutant | -6/Garrison Scavenger-Mutant | -6/Extension Scavenger-Mutant | -6/Cetus Commander-Mutant | -5/Factory Resources | -11 -10 -9 -8 -8 -8 -7 -7 -7 -7 -6 -6 -6 -6 -6 -5 ----------- Run | Yrd Mat Mat Mat Gar Mat Fac Low Low Dat Pro Fac Gar Ext Cet Fac Matter Collected 9053 | 212 539 1022 1391 869 624 1387 355 87 . 438 . 979 382 108 660 Remotely . | . . . . . . . . . . . . . . . . Salvage Created 8098 | . 498 1038 1559 961 827 1067 199 99 . 148 . 693 299 81 629 Parts 463 | . 28 86 96 47 49 55 5 5 . 3 . 31 17 3 38 Haulers Intercepted 5 | . . 2 1 . 2 . . . . . . . . . . Recyclers Shooed 5 | . . . . . . . . . . . . . . . 5 Parts Field Recycled . | . . . . . . . . . . . . . . . . Retrieved Matter . | . . . . . . . . . . . . . . . . Parts Self-Destructed 11 | . . . . . . . 3 5 . 3 . . . . . Prevented 2 | . . . . . . . 2 . . . . . . . . Kills | -11 -10 -9 -8 -8 -8 -7 -7 -7 -7 -6 -6 -6 -6 -6 -5 ------- Run | Yrd Mat Mat Mat Gar Mat Fac Low Low Dat Pro Fac Gar Ext Cet Fac Combat Hostiles Destroyed 221 | . 13 32 41 25 23 25 3 4 . 8 . 21 5 1 20 Guns 91 | . 13 9 17 11 10 10 2 . . 1 . 7 5 1 5 Cannons 76 | . . 20 16 14 . 9 1 3 . 3 . 4 . . 6 AOE 54 | . . 3 8 . 13 6 . 1 . 4 . 10 . . 9 Classes Destroyed 24 | . 4 5 4 1 1 3 2 . . 2 . 1 . . 1 Worker 7 | . . 1 . . 2 2 . . . . . . . . 2 Builder 10 | . . 3 2 . . 1 . . . . . . 1 . 3 Tunneler 1 | . . . . . . 1 . . . . . . . . . Hauler 5 | . . 2 1 . 2 . . . . . . . . . . Recycler 6 | . . 2 2 . . 2 . . . . . . . . . Operator 5 | . 1 2 1 . 1 . . . . . . . . . . Drone 2 | . . . . . . . . . . 2 . . . . . Watcher 10 | . 2 3 2 . . 1 . . . . . . . 1 1 Swarmer 38 | . 5 15 6 . 2 . . 2 . . . 5 . . 3 Cutter 2 | . . . . 2 . . . . . . . . . . . Saboteur 1 | . . . . . . . . . . . . . . . 1 Grunt 94 | . 8 8 21 12 13 14 1 . . 5 . 5 1 1 5 Brawler 2 | . . . . . 1 1 . . . . . . . . . Duelist 7 | . . . 1 1 3 . . . . . . 1 . . 1 Protector 3 | . . . 2 . 1 . . . . . . . . . . Sentry 38 | . . 9 7 8 3 1 . 1 . . . 5 3 . 1 Specialist 6 | . . . . . . 2 . . . . . . . . 4 Hunter 12 | . . . 3 2 . 3 1 . . . . 2 . . 1 Programmer 8 | . . . . . . 3 . 1 . . . 1 . . 3 Heavy 3 | . . . 1 . . 1 . . . . . . . . 1 Behemoth 3 | . . . . . . . . . . 1 . 1 1 . . Executioner 1 | . . . . . . . . . . . . 1 . . . Samaritan 3 | . . . . . . . 2 1 . . . . . . . Mutant 1 | . . . . . . . 1 . . . . . . . . Best Kill Streak 18 | . 3 8 7 2 16 6 1 3 . 5 . 6 2 1 18 Combat Bots Only 14 | . 3 6 7 2 12 5 1 3 . 5 . 6 2 1 14 Max Kills in Single Turn 4 | . 2 4 3 1 3 3 1 1 . 2 . 3 1 1 4 Gunslinging 1 | . 1 . . . . . . . . . . . . . . Exploded 4 | . . 2 3 . 3 3 . 1 . 2 . 3 . . 4 Melee . | . . . . . . . . . . . . . . . . Uniques/NPCs Destroyed . | . . . . . . . . . . . . . . . . Combat | -11 -10 -9 -8 -8 -8 -7 -7 -7 -7 -6 -6 -6 -6 -6 -5 -------- Run | Yrd Mat Mat Mat Gar Mat Fac Low Low Dat Pro Fac Gar Ext Cet Fac Hostile Shots Fired 2179 | . 45 188 333 214 87 215 24 80 . 44 . 545 19 12 373 Missed 601 | . 13 45 76 48 26 58 4 31 . 17 . 173 9 4 97 Damage Taken 22674 | . 370 1609 4008 2354 1115 2100 366 457 . 626 . 4085 405 166 5013 Core 3032 | . 63 166 283 167 71 225 39 70 . 140 . 690 68 47 1003 Absorbed by Shields 1014 | . . 150 164 368 . . . . . . . 177 35 120 . Reduced by Siege Mode 179 | . . . . . . . . . . . . . . . 179 Redirected to Shielding 103 | . . . . . . 20 . 26 . 21 . 36 . . . Regen/Repaired (Parts) 173 | . . . 108 . . . . . . . . . . . 65 Core Remaining (%) 45 | 100 74 58 . . 5 . . . . 32 . . . 5 . Volleys Fired 787 | . 40 130 146 94 58 89 20 20 . 26 . 78 19 7 60 Largest 2 | . 2 2 2 2 2 2 2 2 . 2 . 2 2 2 2 Hottest 169 | . 46 69 75 67 64 87 76 96 . 96 . 125 169 162 138 Shots Fired 1491 | . 80 243 284 181 111 170 40 36 . 44 . 141 37 13 111 Gun 893 | . 80 113 190 106 100 96 20 11 . 7 . 75 36 10 49 Cannon 544 | . . 128 85 75 . 67 20 23 . 34 . 54 1 2 55 Launcher 54 | . . 2 9 . 11 7 . 2 . 3 . 12 . 1 7 Special . | . . . . . . . . . . . . . . . . Kinetic 1310 | . 80 241 275 181 100 163 40 34 . 41 . 79 2 . 74 Thermal 124 | . . . . . . . . . . . . 50 34 10 30 Explosive 52 | . . 2 9 . 11 7 . 2 . 3 . 12 . 1 5 Electromagnetic 5 | . . . . . . . . . . . . . 1 2 2 Robot Hit Streak 26 | . 11 9 18 11 20 18 7 11 . 8 . 26 12 2 9 Robot Miss Streak 10 | . 5 5 4 4 5 6 2 4 . 10 . 5 2 2 4 Penetration Max 1 | . . . 1 1 1 1 . . . . . 1 . . 1 Secondary Targets 4 | . 1 . 1 2 . . . . . . . . . . . Max Gunslinging Chain 1 | . 1 . 1 1 . . . . . . . . . . . Shots Hit Robots 908 | . 54 138 198 115 78 95 27 18 . 17 . 75 22 5 66 Core Hits 522 | . 25 50 96 46 59 62 10 7 . 29 . 62 15 3 58 Critical Kills 1 | . . . . . . . . . . . . 1 . . . Critical Parts Destroyed 7 | . . . 1 . 1 . . . . 1 . 3 . . 1 Critical Strikes 32 | . . 5 5 2 1 4 1 1 . 1 . 4 3 . 5 Burn 5 | . . . . . . . . . . . . . 3 . 2 Destroy 8 | . . . 1 . 1 . . . . 1 . 4 . . 1 Blast 19 | . . 5 4 2 . 4 1 1 . . . . . . 2 Melee Attacks . | . . . . . . . . . . . . . . . . Impact . | . . . . . . . . . . . . . . . . Slashing . | . . . . . . . . . . . . . . . . Piercing . | . . . . . . . . . . . . . . . . Sneak Attacks . | . . . . . . . . . . . . . . . . Combat Hostiles . | . . . . . . . . . . . . . . . . Follow-up Attacks . | . . . . . . . . . . . . . . . . Damage Inflicted 28205 | . 784 3304 4779 2253 2774 3576 532 630 . 1180 . 3158 604 286 4345 Guns 10471 | . 784 943 2150 1311 1181 1262 231 90 . 110 . 925 582 114 788 Cannons 7944 | . . 1781 1337 942 . 1008 301 369 . 226 . 852 22 . 1106 Explosions 9790 | . . 580 1292 . 1593 1306 . 171 . 844 . 1381 . 172 2451 Melee . | . . . . . . . . . . . . . . . . Ramming . | . . . . . . . . . . . . . . . . Kinetic 16553 | . 784 2724 3487 2253 1181 2270 532 459 . 336 . 1003 28 . 1496 Thermal 2041 | . . . . . . 201 . . . . . 774 554 114 398 Explosive 9299 | . . 580 1292 . 1593 1105 . 171 . 844 . 1381 . 172 2161 Electromagnetic 312 | . . . . . . . . . . . . . 22 . 290 Impact . | . . . . . . . . . . . . . . . . Slashing . | . . . . . . . . . . . . . . . . Piercing . | . . . . . . . . . . . . . . . . Highest Corruption 11 | . . . . . . 1 1 1 1 1 1 6 8 8 11 Average Corruption 3 | . . . . . . 1 1 1 1 1 1 4 6 8 2 Corruption Purged . | . . . . . . . . . . . . . . . . Corruption Blocked . | . . . . . . . . . . . . . . . . Effects 133 | . . . . . . 9 3 3 . 9 1 17 67 16 8 Message Errors 34 | . . . . . . 4 1 . . 1 . 3 18 5 2 Matter Fused 25 | . . . . . . 1 1 2 . 4 . 3 11 2 1 Heat Flow Errors 23 | . . . . . . . 1 1 . 2 . 5 10 2 2 Energy Discharges 15 | . . . . . . 2 . . . 1 . 2 8 2 . Parts Rejected 1 | . . . . . . . . . . . . . . . 1 Parts Fused 2 | . . . . . . . . . . . . . 2 . . Data Loss (minor) 19 | . . . . . . 1 . . . . 1 . 13 3 1 Data Loss (major) 3 | . . . . . . 1 . . . 1 . . 1 . . Misfires 7 | . . . . . . . . . . . . 3 3 1 . Alerts 2 | . . . . . . . . . . . . . 1 1 . Weapon Failures 2 | . . . . . . . . . . . . 1 . . 1 Overload Shots . | . . . . . . . . . . . . . . . . Overflow Damage 634 | . . 172 48 10 56 73 50 20 . 15 . 38 . 3 149 Projectiles 304 | . . 79 11 10 . 25 50 20 . 15 . 38 . . 56 Explosions 330 | . . 93 37 . 56 48 . . . . . . . 3 93 Melee . | . . . . . . . . . . . . . . . . Knockbacks 57 | . . 14 13 7 . 10 . 1 . 2 . 1 . . 9 Impact . | . . . . . . . . . . . . . . . . Kinetic 54 | . . 14 12 6 . 10 . 1 . 2 . 1 . . 8 Secondary 3 | . . . 1 1 . . . . . . . . . . 1 Self-Inflicted Damage 850 | . . 179 171 . 111 23 . . . 57 . 126 . . 183 Shots 28 | . . 4 5 . 5 1 . . . 4 . 4 . . 5 Rammed . | . . . . . . . . . . . . . . . . Targets Rammed . | . . . . . . . . . . . . . . . . Kicked . | . . . . . . . . . . . . . . . . Crushed . | . . . . . . . . . . . . . . . . Highest Temperature 400 | . 22 58 252 400 141 117 201 92 . 180 . 339 366 261 305 Average Temperature 71 | . 7 18 78 84 45 33 72 26 . 30 . 93 110 90 92 Received Heat Transfer 6615 | . 180 423 1421 980 639 477 9 60 . 171 . 758 39 21 1437 Effects 10 | . . . 1 2 . . . . . . . 5 2 . . Shutdowns 1 | . . . . . . . . . . . . . 1 . . Energy Bleed 1 | . . . . . . . . . . . . . 1 . . Interference 6 | . . . 1 . . . . . . . . 5 . . . Damage (major) 2 | . . . . 2 . . . . . . . . . . . Siege Activations 1 | . . . . . . . . . . . . . . . 1 Total Turns 15 | . . . . . . . . . . . . . . . 15 Longest Duration 15 | . . . . . . . . . . . . . . . 15 Robots Corrupted . | . . . . . . . . . . . . . . . . Combat Hostiles . | . . . . . . . . . . . . . . . . Parts Fried 2 | . . . . . . . . . . . . . . . 2 Impact Corruptions . | . . . . . . . . . . . . . . . . Robots Melted . | . . . . . . . . . . . . . . . . Combat Hostiles . | . . . . . . . . . . . . . . . . Parts Melted 6 | . . . . 1 . . . . . . . 4 . . 1 Heat Transferred 2994 | . . . . . . 150 . . . . . 775 1124 185 760 Parts Sabotaged . | . . . . . . . . . . . . . . . . Parts Stolen . | . . . . . . . . . . . . . . . . Parts Stripped . | . . . . . . . . . . . . . . . . Power Chain Reactions . | . . . . . . . . . . . . . . . . Alert | -11 -10 -9 -8 -8 -8 -7 -7 -7 -7 -6 -6 -6 -6 -6 -5 ------- Run | Yrd Mat Mat Mat Gar Mat Fac Low Low Dat Pro Fac Gar Ext Cet Fac Peak Influence 1723 | . 291 794 752 1723 1096 478 . . . . 465 1164 703 795 1329 Initial 839 | . . 122 335 488 839 319 . . . . 465 325 611 358 409 Average 571 | . 140 400 549 1029 952 192 . . . . 465 994 480 635 704 Maximum Alert Level 5 | . 1 3 3 5 3 2 . . . . 2 4 3 3 4 Low Security (%) 18 | 100 70 10 . . . 69 . . . . . . . . . Level 1 16 | . 29 41 6 . . 19 . . . . . 7 39 7 1 Level 2 33 | . . 30 88 18 . 11 . . . . 100 5 57 44 58 Level 3 20 | . . 16 5 34 100 . . . . . . 29 3 48 28 Level 4 10 | . . . . 41 . . . . . . . 57 . . 12 Level 5 . | . . . . 6 . . . . . . . . . . . High Security . | . . . . . . . . . . . . . . . . Max Security . | . . . . . . . . . . . . . . . . Squads Dispatched 34 | . 3 3 7 . 5 8 . . . . . . 1 2 5 Investigation 10 | . 2 1 . . 1 3 . . . . . . . 2 1 Extermination 4 | . . . . . . 3 . . . . . . . . 1 Reinforcement 14 | . 1 2 4 . 2 1 . . . . . . 1 . 3 Assault 5 | . . . 2 . 2 1 . . . . . . . . . Garrison 1 | . . . 1 . . . . . . . . . . . . Intercept . | . . . . . . . . . . . . . . . . Searches Triggered . | . . . . . . . . . . . . . . . . Data Miner Redirects 2 | . . . . . . . . . . . . . . 2 . Construction Impeded 4 | . . . . . 1 1 . . . . . . 1 . 1 Haulers Reinforced . | . . . . . . . . . . . . . . . . Active Scanning Responses . | . . . . . . . . . . . . . . . . Cargo Convoy Interrupts 2 | . . . . . . 1 . . . . . . . . 1 Stealth | -11 -10 -9 -8 -8 -8 -7 -7 -7 -7 -6 -6 -6 -6 -6 -5 --------- Run | Yrd Mat Mat Mat Gar Mat Fac Low Low Dat Pro Fac Gar Ext Cet Fac Distress Signals 16 | . . 2 4 . . 2 . . . . . . 5 2 1 Communications Jammed 5 | . . . . . . 2 . . . . . . . . 3 Distress Signals 3 | . . . . . . . . . . . . . . . 3 Times Spotted 370 | . 29 51 53 35 32 37 4 4 . 12 . 31 23 16 43 Peak Tracking Total 15 | . 3 7 12 5 11 6 1 3 . 5 . 7 4 5 15 Tactical Retreats 19 | . 3 4 1 3 2 2 1 . . 1 . 2 . . . Traps | -11 -10 -9 -8 -8 -8 -7 -7 -7 -7 -6 -6 -6 -6 -6 -5 ------- Run | Yrd Mat Mat Mat Gar Mat Fac Low Low Dat Pro Fac Gar Ext Cet Fac Traps Triggered 24 | . 1 . . 11 . . . . . . 2 6 2 . 2 Indirectly . | . . . . . . . . . . . . . . . . Trap Hack Attempts . | . . . . . . . . . . . . . . . . Triggered . | . . . . . . . . . . . . . . . . Disarmed . | . . . . . . . . . . . . . . . . Reprogrammed . | . . . . . . . . . . . . . . . . Reused 1 | . . . . . . . . . . . . 1 . . . Traps Extracted . | . . . . . . . . . . . . . . . . Installed 1 | . . . . . . . . . . . . 1 . . . Triggered 6 | . . . . . . 4 1 . . . . 1 . . . Most Traps Carried 2 | . . . . . . . 1 . . 2 2 2 . . . Machines | -11 -10 -9 -8 -8 -8 -7 -7 -7 -7 -6 -6 -6 -6 -6 -5 ---------- Run | Yrd Mat Mat Mat Gar Mat Fac Low Low Dat Pro Fac Gar Ext Cet Fac Machines Disabled 40 | . . 5 3 5 4 5 1 . . . . 5 4 3 5 Max in Single Turn 2 | . . 2 1 1 2 2 1 . . . . 2 1 1 1 Garrison Access 2 | . . . . . . 1 . . . . . . . . 1 Garrison Relay 7 | . . . . 4 . . . . . . . 3 . . . Machines Repaired . | . . . . . . . . . . . . . . . . Machines Dismantled . | . . . . . . . . . . . . . . . . Machines Sabotaged . | . . . . . . . . . . . . . . . . Overloaded Fab Kills . | . . . . . . . . . . . . . . . . Hacking | -11 -10 -9 -8 -8 -8 -7 -7 -7 -7 -6 -6 -6 -6 -6 -5 --------- Run | Yrd Mat Mat Mat Gar Mat Fac Low Low Dat Pro Fac Gar Ext Cet Fac Machines Accessed 67 | . 7 9 8 2 4 13 . . 4 . 1 . 7 3 9 Terminals 45 | . 7 7 4 2 4 7 . . . . . . 7 3 4 Fabricators 3 | . . . . . . 2 . . . . . . . . 1 Repair Stations 2 | . . . 1 . . . . . . . . . . . 1 Recycling Units 8 | . . 2 2 . . 3 . . . . . . . . 1 Scanalyzers 1 | . . . . . . . . . . . . . . . 1 Garrison Access 4 | . . . 1 . . 1 . . . . 1 . . . 1 Total Hacks 165 | . 13 17 14 4 13 31 . . 30 . 1 . 16 7 19 Successful 96 | . 5 9 10 1 4 18 . . 30 . 1 . 10 . 8 Failed 68 | . 7 8 4 3 9 13 . . . . . . 6 7 11 Catastrophic 18 | . 3 2 . 1 2 3 . . . . . . 2 3 2 Database Lockouts 1 | . 1 . . . . . . . . . . . . . . Manual 46 | . 8 8 1 1 9 3 . . . . . . 7 1 8 Terminals 100 | . 13 15 7 4 13 16 . . . . . . 16 7 9 Fabricators 8 | . . . . . . 6 . . . . . . . . 2 Repair Stations 4 | . . . 2 . . . . . . . . . . . 2 Recycling Units 14 | . . 2 4 . . 6 . . . . . . . . 2 Scanalyzers 2 | . . . . . . . . . . . . . . . 2 Garrison Access 7 | . . . 1 . . 3 . . . . 1 . . . 2 Terminal Hacks 71 | . 5 7 4 1 4 11 . . 30 . . . 8 . 1 Record 11 | . . . . . . . . . 11 . . . . . . Part Schematic 14 | . . . 1 . . . . . 12 . . . . . 1 Robot Schematic 4 | . . . . . . . . . 4 . . . . . . Robot Analysis 7 | . 1 2 . . . 3 . . . . . . 1 . . Prototype ID Bank 6 | . 1 . . . . . . . 3 . . . 2 . . Open Door 1 | . . . . 1 . . . . . . . . . . . Branch Access Points 2 | . . 1 . . . . . . . . . . 1 . . Recycling Unit Index 1 | . . 1 . . . . . . . . . . . . . Alert Level 8 | . 1 . . . 1 4 . . . . . . 2 . . Unreport Threat 7 | . . . . . 3 3 . . . . . . 1 . . Locate Traps 3 | . . . 2 . . 1 . . . . . . . . . Recall Reinforcements 1 | . 1 . . . . . . . . . . . . . . Hauler Manifests 3 | . . 1 1 . . . . . . . . . 1 . . Zone Layout 3 | . 1 2 . . . . . . . . . . . . . Fabricator Hacks 4 | . . . . . . 2 . . . . . . . . 2 Network Status 2 | . . . . . . 2 . . . . . . . . . Load Schematic 1 | . . . . . . . . . . . . . . . 1 Build 1 | . . . . . . . . . . . . . . . 1 Repair Station Hacks 4 | . . . 2 . . . . . . . . . . . 2 Scan Component 2 | . . . 1 . . . . . . . . . . . 1 Repair 2 | . . . 1 . . . . . . . . . . . 1 Recycling Unit Hacks 11 | . . 2 3 . . 4 . . . . . . . . 2 Report Inventory 8 | . . 2 2 . . 3 . . . . . . . . 1 Retrieve Matter 1 | . . . . . . 1 . . . . . . . . . Retrieve Components 2 | . . . 1 . . . . . . . . . . . 1 Scanalyzer . | . . . . . . . . . . . . . . . . Garrison Access Hacks 4 | . . . 1 . . 1 . . . . 1 . . . 1 Unlock Access 2 | . . . 1 . . . . . . . 1 . . . . Seal Access 2 | . . . . . . 1 . . . . . . . . 1 Unauthorized Hacks 2 | . . . . . . . . . . . . . 2 . . Terminals 2 | . . . . . . . . . . . . . 2 . . Botnet 2 | . . . . . . . . . . . . . 2 . . Fabricators . | . . . . . . . . . . . . . . . . Repair Stations . | . . . . . . . . . . . . . . . . Recycling Units . | . . . . . . . . . . . . . . . . Scanalyzers . | . . . . . . . . . . . . . . . . Garrison Access . | . . . . . . . . . . . . . . . . Data Cores Recovered 2 | . . 1 . . . . . . . . . . 1 . . Used . | . . . . . . . . . . . . . . . . Hacking Detections 46 | . 5 5 3 1 4 12 . . . . . . 4 4 8 Full Trace Events 11 | . 2 2 1 . 1 2 . . . . . . . 2 1 Feedback Events . | . . . . . . . . . . . . . . . . Feedback Blocked . | . . . . . . . . . . . . . . . . Robot Schematics Acquired 4 | . . . . . . . . . 4 . . . . . . Robots Built . | . . . . . . . . . . . . . . . . Authchips . | . . . . . . . . . . . . . . . . Time . | . . . . . . . . . . . . . . . . Total Robot Build Rating . | . . . . . . . . . . . . . . . . Part Schematics Acquired 14 | . . . 1 . . . . . 12 . . . . . 1 Parts Built 1 | . . . . . . . . . . . . . . . 1 Authchips . | . . . . . . . . . . . . . . . . Time 106 | . . . . . . . . . . . . . . . 106 Total Part Build Rating 6 | . . . . . . . . . . . . . . . 6 Parts Repaired 2 | . . . 1 . . . . . . . . . . . 1 Time 88 | . . . 32 . . . . . . . . . . . 56 Parts Recycled . | . . . . . . . . . . . . . . . . Recycled Matter . | . . . . . . . . . . . . . . . . Retrieved Matter . | . . . . . . . . . . . . . . . . Retrieved Components 13 | . . . 10 . . . . . . . . . . . 3 Parts Scanalyzed . | . . . . . . . . . . . . . . . . Part Schematics Acquired . | . . . . . . . . . . . . . . . . Parts Damaged . | . . . . . . . . . . . . . . . . Bothacking | -11 -10 -9 -8 -8 -8 -7 -7 -7 -7 -6 -6 -6 -6 -6 -5 ------------ Run | Yrd Mat Mat Mat Gar Mat Fac Low Low Dat Pro Fac Gar Ext Cet Fac Used RIF Installer . | . . . . . . . . . . . . . . . . Robots Hacked . | . . . . . . . . . . . . . . . . Non-combat . | . . . . . . . . . . . . . . . . Combat . | . . . . . . . . . . . . . . . . Robot Hacks Applied . | . . . . . . . . . . . . . . . . Relay Couplers Released 24 | . . . . 13 . . . . . . . 11 . . . Machine Destruction 24 | . . . . 13 . . . . . . . 11 . . . Fabnet Peak Effective % . | . . . . . . . . . . . . . . . . Robots Rewired 19 | . . . . 9 . . . . . . . . 9 . 1 Allies Hacked . | . . . . . . . . . . . . . . . . Hacks Repelled . | . . . . . . . . . . . . . . . . Allies | -11 -10 -9 -8 -8 -8 -7 -7 -7 -7 -6 -6 -6 -6 -6 -5 -------- Run | Yrd Mat Mat Mat Gar Mat Fac Low Low Dat Pro Fac Gar Ext Cet Fac Total Allies 45 | . . . . 9 . 3 . . . 1 . 2 24 5 1 Largest Group 13 | . . . . 5 3 3 . . . 1 1 2 13 13 13 Highest-Rated Group 861 | . . . . 121 15 93 . . . 96 96 142 513 861 854 Highest-Rated Ally 159 | . . . . 25 5 31 . . . 96 96 96 159 159 152 Total Orders . | . . . . . . . . . . . . . . . . Ally Attacks 545 | . . . . 35 12 38 . . . 7 . 25 190 117 121 Total Damage 12631 | . . . . 947 71 611 . . . 189 . 1065 3991 2488 3269 Kills 80 | . . . . 7 1 3 . . . . . 8 27 14 20 Allies Corrupted . | . . . . . . . . . . . . . . . . Allies Melted . | . . . . . . . . . . . . . . . . Intel | -11 -10 -9 -8 -8 -8 -7 -7 -7 -7 -6 -6 -6 -6 -6 -5 ------- Run | Yrd Mat Mat Mat Gar Mat Fac Low Low Dat Pro Fac Gar Ext Cet Fac Robot Analysis Total 7 | . 1 2 . . . 3 . . . . . . 1 . . Derelict Logs Recovered 6 | . . . . . . . 1 2 . 3 . . . . . Drone Launches . | . . . . . . . . . . . . . . . . Drone Recoveries . | . . . . . . . . . . . . . . . . Exploration | -11 -10 -9 -8 -8 -8 -7 -7 -7 -7 -6 -6 -6 -6 -6 -5 ------------- Run | Yrd Mat Mat Mat Gar Mat Fac Low Low Dat Pro Fac Gar Ext Cet Fac Turns Passed 19262 | 62 1162 1848 2236 2286 1375 2858 585 669 96 1118 223 1021 2051 453 1219 Spaces Moved 8993 | 33 619 830 817 770 470 1620 392 469 80 787 148 358 838 206 556 Core 19 | 3 . . . . . . . . . . . . . . 16 Treads 4896 | 30 619 620 817 770 470 693 . . . . 2 135 195 15 530 Legs 896 | . . . . . . . . . . . . 62 643 191 . Wheels 3182 | . . 210 . . . 927 392 469 80 787 146 161 . . 10 Hover . | . . . . . . . . . . . . . . . . Flight . | . . . . . . . . . . . . . . . . Fastest Speed 50 | 50 160 110 160 163 160 130 130 130 115 115 130 120 186 160 50 Average Speed 175 | 150 160 165 202 243 239 151 130 130 116 129 143 201 211 184 167 Slowest Speed 950 | 160 160 320 245 400 240 410 130 130 130 130 240 320 320 186 950 Overloaded Moves . | . . . . . . . . . . . . . . . . Propulsion Burnouts . | . . . . . . . . . . . . . . . . Robots Hopped . | . . . . . . . . . . . . . . . . Cave-ins Triggered 1 | . . . . . . . . . . . . 1 . . . Exploration Rate (%) 56 | 3 95 90 65 79 45 35 59 66 68 83 5 38 87 69 18 Regions Visited 15 Branch Regions 6 Pre-discovered Areas 2 | . . . . . . . 1 . 1 . . . . . . Known Exits Taken 5 | . . . 1 . . . . . . 1 1 . 1 1 . Unknown Exits Taken 8 | 1 1 1 . . 1 1 1 1 1 . . . . . . Scrap Searched 7 | . . . . . . . 3 2 . 2 . . . . . Spaces Dug 25 | . . 2 2 . . 5 . 5 . 11 . . . . . Terrain Destroyed 587 | . . 52 77 . 118 54 10 22 . 83 . 107 . 23 41 Melee . | . . . . . . . . . . . . . . . . Projectile 96 | . . 8 3 . 1 12 10 9 . 21 . 10 . . 22 AOE 491 | . . 44 74 . 117 42 . 13 . 62 . 97 . 23 19 Terrain Rammed . | . . . . . . . . . . . . . . . . Walls Destroyed . | . . . . . . . . . . . . . . . . Machines Disabled . | . . . . . . . . . . . . . . . . Actions | -11 -10 -9 -8 -8 -8 -7 -7 -7 -7 -6 -6 -6 -6 -6 -5 --------- Run | Yrd Mat Mat Mat Gar Mat Fac Low Low Dat Pro Fac Gar Ext Cet Fac Total 11055 | 43 719 1068 1122 1014 615 1862 431 491 83 836 158 513 1097 268 735 Wait 536 | . 25 60 58 27 35 60 4 . . 14 . 5 143 41 64 Move 8980 | 32 618 829 817 769 469 1619 391 468 79 786 148 357 837 205 556 Hop . | . . . . . . . . . . . . . . . . Pick Up 182 | 5 16 13 33 17 13 28 6 . . 3 3 14 16 2 13 Fast Attach 66 | 5 5 7 10 2 4 5 1 . 2 . . 13 5 3 4 Attach 85 | 1 1 6 15 10 4 13 1 . . 4 1 17 1 . 11 Detach 11 | . 3 . 2 . . 1 . . . . . 3 . . 2 Swap 95 | . 2 9 17 4 12 18 1 2 . 2 . 7 11 4 6 Drop 166 | . 9 14 24 14 20 29 7 . 2 1 . 10 19 6 11 Fire 787 | . 40 130 146 94 58 89 20 20 . 26 . 78 19 7 60 Melee . | . . . . . . . . . . . . . . . . Ram . | . . . . . . . . . . . . . . . . Kick . | . . . . . . . . . . . . . . . . Crush . | . . . . . . . . . . . . . . . . Escape Stasis 32 | . . . . 18 . . . . . . 6 8 . . . Rewire 114 | . . . . 59 . . . 1 . . . . 46 . 8 Trap 1 | . . . . . . . . . . . . 1 . . . Miscellaneous . | . . . . . . . . . . . . . . . . Route ------- -11/Scrapyard -10/Materials (discovered 4 exits: *Mat x3 / [*Min]) -9/Materials (discovered 3 exits: *Mat x2 / *Min) -8/Materials (discovered 3 exits: *Fac x2 / Gar) -8/Garrison (discovered 4 exits: *Fac x3 / *Mat) -8/Materials -7/Factory (discovered 2 exits: *Fac / [*Low]) -7/Lower Caves -7/Lower Caves (discovered 2 exits: *Fac / *Dat) -7/Data Miner -6/Proximity Caves -6/Factory (discovered 4 exits: *Fac x2 / Low / Gar) -6/Garrison -6/Extension (discovered 2 exits: *Fac / *Cet) -6/Cetus (discovered 2 exits: *Fac / [*Arc]) -5/Factory (discovered 3 exits: [*Fac x2] / [*Upp]) History --------- Turn | Location | Event 19 | -11/Scrapyard | Discovered new exit (range 16) 63 | -11/Scrapyard | Entered Materials 137 | -10/Materials | Central database locked down 279 | -10/Materials | Discovered new exit (range 13) 308 | -10/Materials | Build established: Mutant 508 | -10/Materials | Discovered new exit (range 7) 806 | -10/Materials | Discovered new exit (range 9) 1094 | -10/Materials | Discovered new exit (range 16) 1225 | -10/Materials | Entered another Materials area 1225 | -9/Materials | Evolved 2 slots: Utility x2 1758 | -9/Materials | Discovered new exit (range 15) 1863 | -9/Materials | Identified exit to Mines 2120 | -9/Materials | Lost 3 parts (1p2u) 2219 | -9/Materials | Lost 3 parts (2n1w) 2511 | -9/Materials | Build established: Scavenger-Mutant 2674 | -9/Materials | Discovered new exit (range 18) 3073 | -9/Materials | Entered another Materials area 3073 | -8/Materials | Evolved 2 slots: Propulsion x1, Utility x1 3546 | -8/Materials | Lost 5 parts (1n3u1w) 3601 | -8/Materials | Destroyed 7 combat bots 3610 | -8/Materials | Lost 3 parts (2n1w) 3861 | -8/Materials | Build established: Mutant 4273 | -8/Materials | First assault squad dispatched 4488 | -8/Materials | Discovered new exit (range 12) 4553 | -8/Materials | Lost 5 parts (2n2u1w) 5045 | -8/Materials | Repaired Hvy. Assault Rifle 5065 | -8/Materials | Discovered new exit (range 4) 5227 | -8/Materials | Garrison activated, responded to threat 5249 | -8/Materials | Core integrity fell below 50% 5309 | -8/Materials | Identified exit to Garrison 5309 | -8/Materials | Entered Garrison 5397 | -8/Garrison | Triggered checkpoint 5420 | -8/Garrison | Garrison Relay disabled 5503 | -8/Garrison | Triggered checkpoint 5671 | -8/Garrison | Triggered checkpoint 5851 | -8/Garrison | Triggered checkpoint 5876 | -8/Garrison | Discovered new exit (range 13) 6241 | -8/Garrison | Triggered checkpoint 6302 | -8/Garrison | Garrison Relay disabled 6339 | -8/Garrison | Discovered new exit (range 10) 6499 | -8/Garrison | Triggered checkpoint 6739 | -8/Garrison | Triggered checkpoint 6826 | -8/Garrison | Garrison Relay disabled 7081 | -8/Garrison | Triggered checkpoint 7135 | -8/Garrison | Lost 3 allies 7205 | -8/Garrison | Triggered checkpoint 7255 | -8/Garrison | Garrison Relay disabled 7379 | -8/Garrison | Discovered new exit (range 9) 7400 | -8/Garrison | Build established: Scavenger-Mutant 7409 | -8/Garrison | Triggered checkpoint 7475 | -8/Garrison | Core integrity fell below 20% 7501 | -8/Garrison | Lost 3 parts (1n1u1w) 7545 | -8/Garrison | Discovered new exit (range 5) 7595 | -8/Garrison | Entered Materials 7595 | -8/Materials | Accompanied by 3 allies 7797 | -8/Materials | Lost 3 allies 7995 | -8/Materials | First assault squad dispatched 8109 | -8/Materials | Destroyed 12 combat bots 8919 | -8/Materials | Discovered new exit (range 16) 8970 | -8/Materials | Entered Factory 8970 | -7/Factory | Evolved 2 slots: Propulsion x1, Utility x1 9045 | -7/Factory | Discovered new exit (range 15) 9112 | -7/Factory | Discovered new exit (range 15) 9787 | -7/Factory | Build established: Hacker-Mutant 9840 | -7/Factory | Cargo convoy interrupted 10168 | -7/Factory | Lost 3 parts (2n1u) 11156 | -7/Factory | Found Prototype Launcher 11156 | -7/Factory | Identified Rocket Array 11770 | -7/Factory | First assault squad dispatched 11828 | -7/Factory | Entered Lower Caves 11863 | -7/Lower Caves | Attacked by a delusional Derelict stockpiling parts 11890 | -7/Lower Caves | Met a Warlord Commander 11891 | -7/Lower Caves | Learned location of Warlord (-5) 11892 | -7/Lower Caves | Warlord Commander delivered Encrypted Comm Array 11892 | -7/Lower Caves | Found Encrypted Comm Array 12215 | -7/Lower Caves | Found DCF Scrap (12 items) 12361 | -7/Lower Caves | Discovered new exit (range 11) 12413 | -7/Lower Caves | Entered another Lower Caves area 12413 | -7/Lower Caves | Discovered new exit (range 10) 12458 | -7/Lower Caves | Learned 8 Factory zone layouts 12487 | -7/Lower Caves | Encountered a Warlord checkpoint 12696 | -7/Lower Caves | Attracted the attention of an 0b10 checkpoint 12739 | -7/Lower Caves | Learned 4 Factory zone layouts 13069 | -7/Lower Caves | Discovered new exit (range 11) 13082 | -7/Lower Caves | Entered Data Miner 13082 | -7/Data Miner | Discovered new exit (range 6) 13106 | -7/Data Miner | Met Data Miner 13128 | -7/Data Miner | Learned location of Section 7 (-2) 13128 | -7/Data Miner | Acquired the access code to Warlord's prototype stash 13143 | -7/Data Miner | Received God Mode back door access code from Data Miner 13178 | -7/Data Miner | Entered Proximity Caves 13307 | -6/Proximity Caves | Identified exit to Factory 13320 | -6/Proximity Caves | Learned Factory emergency access door positions 13339 | -6/Proximity Caves | Spotter reported a threat 13359 | -6/Proximity Caves | Spotter reported a threat 13393 | -6/Proximity Caves | Spotter reported a threat 13627 | -6/Proximity Caves | Spotted B-75 Beast 13666 | -6/Proximity Caves | Core integrity fell below 50% 13681 | -6/Proximity Caves | Destroyed B-75 Beast 13683 | -6/Proximity Caves | Escorted by Enhanced Grunt 13715 | -6/Proximity Caves | Lost 3 parts (1p2w) 14296 | -6/Proximity Caves | Entered Factory 14296 | -6/Factory | Accompanied by 1 ally 14296 | -6/Factory | Evolved 2 slots: Utility x2 14297 | -6/Factory | Identified exit to Lower Caves 14298 | -6/Factory | Identified exit to Factory 14472 | -6/Factory | Discovered exit to Factory (range 11) 14519 | -6/Factory | Identified exit to Garrison 14519 | -6/Factory | Entered Garrison 14519 | -6/Garrison | Accompanied by 1 ally 14643 | -6/Garrison | Garrison Relay disabled 14707 | -6/Garrison | Triggered checkpoint 14707 | -6/Garrison | Garrison Relay disabled 14738 | -6/Garrison | Triggered checkpoint 14738 | -6/Garrison | Triggered checkpoint 14927 | -6/Garrison | Crushed by falling debris 14987 | -6/Garrison | Spotted B-75 Beast 15013 | -6/Garrison | Destroyed B-75 Beast 15050 | -6/Garrison | Core integrity fell below 50% 15079 | -6/Garrison | Discovered new exit (range 8) 15096 | -6/Garrison | Lost 13 parts (2p3n3u5w) 15185 | -6/Garrison | Triggered checkpoint 15273 | -6/Garrison | Spotted Executioner 15273 | -6/Garrison | Garrison Relay disabled 15295 | -6/Garrison | Core integrity fell below 20% 15299 | -6/Garrison | Destroyed Executioner 15316 | -6/Garrison | Lost 4 parts (2n1u1w) 15347 | -6/Garrison | Found embedded Infiltrators 15408 | -6/Garrison | Build established: Scavenger-Mutant 15439 | -6/Garrison | Found Prototype Processor 15439 | -6/Garrison | Identified Exp. Core Analyzer 15540 | -6/Garrison | Entered Extension 15540 | -6/Extension | Accompanied by 2 allies 15695 | -6/Extension | Rescued a captive Derelict 15696 | -6/Extension | Rescued a captive Derelict 15748 | -6/Extension | Rescued a captive Derelict 15748 | -6/Extension | Rescued a captive Derelict 15979 | -6/Extension | Rescued a captive Derelict 15979 | -6/Extension | Rescued a captive Derelict 16055 | -6/Extension | Rescued a captive Derelict 16240 | -6/Extension | Identified exit to Cetus 16968 | -6/Extension | Spotted B-75 Beast 16983 | -6/Extension | Destroyed B-75 Beast 16990 | -6/Extension | Spotted B-75 Beast 17008 | -6/Extension | Allies destroyed B-75 Beast 17050 | -6/Extension | Lost 7 allies 17075 | -6/Extension | Rescued A7 17154 | -6/Extension | Rescued a captive Derelict 17155 | -6/Extension | Rescued a captive Derelict 17412 | -6/Extension | Rescued a captive Derelict 17414 | -6/Extension | Rescued a captive Derelict 17468 | -6/Extension | Rescued a captive Derelict 17481 | -6/Extension | Rescued a captive Derelict 17482 | -6/Extension | Rescued a captive Derelict 17551 | -6/Extension | Discovered exit to Factory (range 10) 17591 | -6/Extension | Entered Cetus 17591 | -6/Cetus | Accompanied by 13 allies (A7) 17596 | -6/Cetus | Acquired a Cetus Manufacturing Module code from A7 17616 | -6/Cetus | Spotted Cetus Guard 17616 | -6/Cetus | Spotted Cetus Guard 17618 | -6/Cetus | Allies destroyed Cetus Guard 17622 | -6/Cetus | Spotted Cetus Guard 17631 | -6/Cetus | Allies destroyed Cetus Guard 17633 | -6/Cetus | Allies destroyed Cetus Guard 17727 | -6/Cetus | Incoming investigation squad redirected 17771 | -6/Cetus | Started Cetus Manufacturing Module 17796 | -6/Cetus | Manufactured an Enhanced Grunt 17808 | -6/Cetus | Incoming investigation squad redirected 17821 | -6/Cetus | Manufactured an Enhanced Grunt 17846 | -6/Cetus | Manufactured an Enhanced Grunt 17851 | -6/Cetus | Lost 3 allies 17871 | -6/Cetus | Manufactured an Enhanced Grunt 17896 | -6/Cetus | Manufactured an Enhanced Grunt 17933 | -6/Cetus | Discovered new exit (range 16) 17968 | -6/Cetus | Spotted Cetus Guard 17968 | -6/Cetus | Spotted Cetus Guard 17976 | -6/Cetus | Spotted Cetus Guard 17976 | -6/Cetus | Spotted Cetus Guard 17986 | -6/Cetus | Allies destroyed Cetus Guard 17990 | -6/Cetus | Allies destroyed Cetus Guard 17994 | -6/Cetus | Allies destroyed Cetus Guard 17994 | -6/Cetus | Allies destroyed Cetus Guard 18002 | -6/Cetus | Discovered exit to Factory (range 15) 18011 | -6/Cetus | Met Revision 17 18044 | -6/Cetus | Entered Factory 18044 | -5/Factory | Accompanied by 13 allies (A7) 18044 | -5/Factory | Evolved 2 slots: Power x1, Utility x1 18044 | -5/Factory | Discovered new exit (range 9) 18060 | -5/Factory | Discovered new exit (range 13) 18157 | -5/Factory | Build established: Commander-Mutant 18226 | -5/Factory | Repaired Hvy. Beamcaster 18830 | -5/Factory | Discovered new exit (range 3) 18946 | -5/Factory | Lost 7 allies 19046 | -5/Factory | Fabricated Hvy. Treads (x1) 19105 | -5/Factory | Cargo convoy interrupted 19184 | -5/Factory | Destroyed 14 combat bots 19191 | -5/Factory | Lost 11 parts (2p4n3u2w) 19240 | -5/Factory | Core integrity fell below 50% 19250 | -5/Factory | System corruption reached 10% 19254 | -5/Factory | Core integrity fell below 20% 19263 | -5/Factory | Destroyed by P-70 Sage with Tesla Rifle Last Messages --------------- 19245_ Wheel destroyed. 19245_ K-01 Serf collects debris. 19246_ Bore Cannon destroyed. 19248_ Encrypted Comm Array destroyed. 19248_ U-05 Engineer builds a Wall. 19249_ Wheel destroyed. 19249_ K-01 Serf collects debris. 19249_ M-13 Machinist repairs Lgt. Angular Momentum Engine. 19253_ U-05 Engineer lays Concrete. 19255_ K-01 Serf collects debris. 19256_ M-13 Machinist fits Backup Propulsion I on P-70 Sage. 19257_ Dropped Hcp. Storage Unit. 19257_ M-13 Machinist destroyed. 19258_ U-05 Engineer builds a Wall. 19258_ K-01 Serf collects debris. 19259_ U-05 Engineer builds a Wall. 19259_ K-01 Serf destroyed. 19263_ Core Analyzer destroyed. Map ----- +----------------------------------------------------+ | ?????????????????????????????????????????????????? | | ?????????????????????????????????????????????????? | | ?????????????????????????????????????????????????? | | ?????????????????????????????????????????????????? | | ?????????????????????????????????????????????????? | | ?????????????????????????????????????????????????? | | ?????????????????????????????????????????????????? | | ?????????????????????????????????????????????????? | | ?????????????????############????????????????????? | | ?????????????????# #??????????????????? | | ???????? ????????# #??????????????????? | | ???????? ????????# #??????????????????? | | ???????? ????????# #??????????????????? | | ???????? ????????# #??????????????????? | | ??####+#+????????# #??????????????????? | | ??? ^ ^ ^#???###?# #??????????????????? | | ???#^ #?###"#?# #??????????????????? | | ???# ###" "### ???????????????????? | | ##?# # % # ?????????????????????? | | ### # % # ???????????????????????? | | # # #? ?????????????????????????? | | # # !! ####+##################?????????? | | # "===[ # ?????????? | | # ^ ==g[]%R# ????????? | | % # * p!![ p R ????????? | | # # ! # @ ????????? | | % # % #%=] # ????????? | | #%% #| # #####+### ##??????????? | | +###%%%% # # #?????????? #???????????? | | % % # # #???????????? ????????????? | | % #! + #?????????????????????????? | | % # """# #?????????????????????????? | | # R"# #?????????????????????????? | | # """# #?????????????????????????? | | # # #?????????????????????????? | | % %######### #?????????????????????????? | | % %[???? #?????????????????????????? | | % % =???? ??????????????????????????? | | % ???? "" ???????????????????????????? | | ??????????????????????????????????? | | """?????????????????????????????????? | | #"####### """?????????????????????????????????? | | " ?? ""??????????????????????????????????? | | # ?? ???????????????????????????????????? | | + ???"???????????????????????????????????? | | # ???????????????????????????????????????? | | # " " " ???????????????????????????????????????? | | # " " ?????????????????????????????????????????? | | ##?? ???????????????????????????????????????????? | | #???????????????????????????????????????????????? | +----------------------------------------------------+ Best States ------------- Heat Dissipation 67 Energy Generation 39 Energy Capacity 690 Matter Stores 300 Matter Capacity 300 Sight Range 18 Robot Scan Range 15 Terrain Scan Density 10 ECM Strength 1 Jamming Range 12 Armor Coverage 825 Utility Shielding 66 Evasion (%) 50 Targeting Accuracy 10 Core Analysis 11 Recoil Reduction 4 Offensive Hacking 20 Item Schematics ----------------- Huge Storage Unit | -8/Materials | Hacked Combat Drone Bay | -7/Data Miner | Free Lgt. Regenerative Plating | -7/Data Miner | Free Cld. Aerolev Unit | -7/Data Miner | Free Gravity Neutralizer | -7/Data Miner | Free Cld. Plasma Cannon | -7/Data Miner | Free Antigrav System | -7/Data Miner | Free Imp. Shock Absorption System | -7/Data Miner | Free Tesla Rifle | -7/Data Miner | Free Wave Gun | -7/Data Miner | Free Adv. Trap Extractor | -7/Data Miner | Free Imp. Antigrav System | -7/Data Miner | Free Adv. Thermal Generator | -7/Data Miner | Free Hvy. Treads | -5/Factory | Hacked Robot Schematics ------------------ A-15 Conveyor | -7/Data Miner | Free W-25 Informer | -7/Data Miner | Free L-41 Fighter | -7/Data Miner | Free G-50 Soldier | -7/Data Miner | Free Fabricated ------------ Hvy. Treads | x1 | -5/Factory Alien Tech Used ----------------- None Achievements -------------- Generalissimo Challenges ------------ None Game ------ Seed ShadeAntigravBotcube Manual? 0 Play Time 02:04:56 Cumulative 154.1 hours Start 2025.01.04 @ 10:42:55 End 2025.01.04 @ 12:58:39 Sessions 1 Manual Loads 0 Difficulty Rogue Special Mode None Game No. 189 Rogue 189 Adventurer 0 Explorer 0 Win Type - Total 3 Types 3/0/0/0/0/0/0/0/0 Lore% 68 Gallery% 59 Achievement% 51 Wizard Run 0 Options --------- Layout 1 ASCII 0 Keyboard 1 Movement Numpad Keybinds 0 Fullscreen 1 Font 24/Smallcaps Map View 50x35 Zoom Use 0% Tactical HUD 1 Map Filters NONE Filters NONE Steam 1 RUN: 35feb936-a1ff-4f8a-9840-f845ba69f21d